bitfinex/quotes_SOLUSD_20250830
["timestamp","ask_amount","ask_price","bid_price","bid_amount"]
[1756520084825,0.06,202.77,202.76,51.98873905]
[1756520085029,0.06,202.8,202.76,85.59178732]
[1756520085229,0.06,202.8,202.79,4.72679982]
[1756520085739,0.06,202.8,202.79,5.41679982]
[1756520086245,0.06,202.8,202.79,10.34800944]
[1756520087511,1e-08,202.8,202.79,10.34800944]
[1756520091839,1e-08,202.8,202.79,51.92800944]
[1756520092039,1e-08,202.8,202.79,47.20120962]
[1756520092232,1e-08,202.8,202.79,51.92800944]
[1756520093115,1e-08,202.8,202.79,57.14793022]
[1756520094528,1e-08,202.8,202.79,47.69433058]
[1756520094842,1e-08,202.83,202.81,26.0]
[1756520095146,1e-08,202.83,202.82,4.72679982]
[1756520095344,1e-08,202.83,202.82,5.41679982]
[1756520095859,1e-08,202.83,202.82,10.34728004]
[1756520097031,1e-08,202.83,202.82,51.86728004]
[1756520098636,1e-08,202.83,202.82,51.84728004]
[1756520101452,1e-08,202.85,202.84,26.0]
[1756520101654,1e-08,202.85,202.84,4.72679982]
[1756520101961,1e-08,202.85,202.84,31.41679982]
[1756520102539,1e-08,202.85,202.84,36.3467939]
[1756520102852,1e-08,202.85,202.84,77.8067939]
[1756520104052,1e-08,202.85,202.84,79.7812739]
[1756520105350,0.66,202.99,202.92,26.0]
[1756520105530,0.66,202.99,202.97,4.72679982]
[1756520105736,0.66,202.99,202.98,41.44]
[1756520107331,0.66,202.99,202.98,46.36659375]
[1756520107839,0.66,202.99,202.98,41.44]
[1756520108551,0.66,202.99,202.89,4.92877914]
[1756520108738,5.38679982,202.98,202.93,4.72679982]
[1756520108927,0.66,202.97,202.94,41.4]
[1756520109127,0.66,202.96,202.94,41.4]
[1756520109347,0.66,202.95,202.94,41.4]
[1756520110329,0.66,202.95,202.94,46.32756479]
[1756520110853,4.72679982,202.99,202.94,46.32756479]
[1756520111060,0.66,202.98,202.95,4.72679982]
[1756520111248,0.66,202.98,202.96,41.38]
[1756520111456,0.66,202.98,202.96,46.30702154]
[1756520112348,0.66,202.97,202.96,41.38]
[1756520112656,0.66,202.97,202.95,9.65411621]
[1756520112965,0.66,202.97,202.95,4.92731639]
[1756520113269,0.06,202.99,202.95,4.72679982]
[1756520113462,0.06,202.99,202.96,41.36]
[1756520113637,0.66,202.98,202.96,46.28704157]
[1756520114050,0.06,202.99,202.96,4.92704157]
[1756520114253,0.66,202.97,202.96,4.92704157]
[1756520114462,0.66,202.97,202.96,41.36]
[1756520117041,5.38679982,202.97,202.9,9.65533604]
[1756520117257,0.66,202.96,202.92,4.72679982]
[1756520117550,0.06,202.99,202.91,41.34]
[1756520117551,0.66,202.98,202.94,9.65423023]
[1756520117748,0.66,202.97,202.95,41.32]
[1756520117955,0.06,202.99,202.96,4.72679982]
[1756520118855,0.06,202.99,202.95,42.01]
[1756520119054,0.06,202.99,202.96,4.72679982]
[1756520119445,0.06,202.99,202.95,42.01]
[1756520119647,0.06,202.99,202.96,9.65364983]
[1756520120948,0.06,202.99,202.98,4.72679982]
[1756520121161,0.06,202.99,202.98,41.3]
[1756520121359,0.06,202.99,202.98,46.02679982]
[1756520121746,0.06,202.99,202.98,50.95339357]
[1756520127772,0.06,202.99,202.98,46.22659375]
[1756520128288,0.06,202.99,202.98,50.95339357]
[1756520128573,0.06,202.99,202.98,46.22659375]
[1756520128756,0.06,202.99,202.98,50.95339357]
[1756520132870,0.06,202.99,202.98,46.22659375]
[1756520133173,0.06,202.99,202.98,50.95339357]
[1756520133772,0.06,202.99,202.98,46.22659375]
[1756520134254,0.76,202.99,202.94,0.7]
[1756520134443,0.7,202.98,202.95,45.92679982]
[1756520134657,0.06,202.99,202.95,45.92679982]
[1756520134951,0.76,202.99,202.95,46.62679982]
[1756520135155,0.06,202.99,202.95,46.62679982]
[1756520135350,0.06,202.99,202.96,0.7]
[1756520135550,0.06,202.99,202.97,41.18]
[1756520136154,0.06,202.99,202.97,41.88]
[1756520136767,0.06,202.99,202.97,41.18]
[1756520137673,0.06,202.99,202.97,46.10676701]
[1756520137843,0.06,202.99,202.97,50.83356683]
[1756520138044,0.06,202.99,202.98,0.7]
[1756520138245,0.06,202.99,202.97,51.53356683]
[1756520139353,0.06,202.99,202.97,46.80676701]
[1756520140144,0.06,202.99,202.97,51.53356683]
[1756520140342,0.06,202.99,202.93,4.92780761]
[1756520140343,0.7,202.98,202.93,4.92780761]
[1756520140545,0.7,202.97,202.94,45.86679982]
[1756520140846,4.78679982,202.99,202.95,0.7]
[1756520140847,5.48679982,202.99,202.95,0.7]
[1756520141162,5.42679982,202.98,202.96,41.14]
[1756520142766,4.72679982,202.98,202.94,5.62737132]
[1756520142968,5.42679982,202.98,202.95,41.12]
[1756520143554,4.72679982,202.98,202.95,41.12]
[1756520143874,4.72679982,202.98,202.95,41.82]
[1756520144256,4.72679982,202.98,202.9,0.03]
[1756520144257,4.72679982,202.96,202.9,0.03]
[1756520144570,4.72679982,202.91,202.9,0.03]
[1756520144960,5.42679982,202.91,202.9,0.03]
[1756520145774,0.7,202.91,202.9,0.03]
[1756520145979,5.42679982,202.91,202.9,0.03]
[1756520146351,10.35509315,202.91,202.9,0.03]
[1756520147175,5.42679982,202.91,202.9,0.03]
[1756520147672,4.92777319,202.94,202.9,0.03]
[1756520147854,4.72679982,202.91,202.9,0.03]
[1756520148169,5.42679982,202.91,202.9,0.03]
[1756520148369,23.95068716,202.91,202.9,0.03]
[1756520149251,19.02239383,202.91,202.9,0.03]
[1756520149451,18.32239383,202.91,202.9,0.03]
[1756520149647,13.59559401,202.93,202.9,0.03]
[1756520149868,4.72679982,202.91,202.9,0.03]
[1756520150465,14.810793,202.96,202.9,0.03]
[1756520150666,4.72679982,202.92,202.9,0.73]
[1756520150860,4.72679982,202.93,202.9,0.73]
[1756520151369,4.72679982,202.93,202.9,0.03]
[1756520151753,4.72679982,202.92,202.9,0.03]
[1756520151960,30.92708644,202.96,202.9,0.03]
[1756520151961,4.72679982,202.91,202.9,0.03]
[1756520152159,4.72679982,202.92,202.9,0.03]
[1756520152883,4.72679982,202.91,202.9,0.03]
[1756520153362,45.02239383,202.91,202.9,0.03]
[1756520153559,49.74919365,202.91,202.9,0.03]
[1756520153762,46.99745883,202.91,202.9,0.03]
[1756520153962,45.02239383,202.91,202.9,0.03]
[1756520154162,46.99745883,202.91,202.9,0.03]
[1756520154582,45.02239383,202.91,202.9,0.03]
[1756520154757,49.95068716,202.91,202.9,0.03]
[1756520159964,54.67748698,202.91,202.9,0.03]
[1756520160163,30.92902208,202.88,202.87,0.03]
[1756520160368,35.6558219,202.88,202.87,0.03]
[1756520160585,36.3558219,202.88,202.87,0.03]
[1756520161379,38.3312759,202.88,202.87,0.03]
[1756520161685,15.57104801,202.88,202.87,0.03]
[1756520161888,13.59559401,202.88,202.87,0.03]
[1756520162086,44.32239383,202.88,202.87,0.03]
[1756520163263,26.0,202.88,202.87,0.7]
[1756520163466,4.72679982,202.88,202.87,0.7]
[1756520164187,0.06,202.91,202.87,0.7]
[1756520164370,0.06,202.91,202.88,4.72679982]
[1756520164572,0.06,202.91,202.89,0.67]
[1756520164977,0.06,202.91,202.87,4.95917671]
[1756520165286,0.06,202.91,202.9,0.67]
[1756520167869,0.06,202.91,202.9,5.59853622]
[1756520168576,0.06,202.91,202.9,10.32533604]
[1756520171391,0.06,202.91,202.9,5.59853622]
[1756520171689,0.06,202.91,202.87,10.35604543]
[1756520171990,0.06,202.91,202.9,4.72679982]
[1756520172378,0.06,202.91,202.9,5.39679982]
[1756520172894,0.06,202.91,202.9,0.67]
[1756520173971,0.06,202.91,202.9,5.59853622]
[1756520177472,0.06,202.91,202.9,10.32533604]
[1756520178201,0.06,202.91,202.89,9.6555718]
[1756520178387,0.06,202.91,202.89,46.47877198]
[1756520179612,0.06,202.91,202.9,5.59853622]
[1756520180297,0.06,202.91,202.87,0.03]
[1756520180486,4.78679982,202.91,202.88,40.86]
[1756520180883,4.78679982,202.91,202.87,4.95923871]
[1756520180884,5.48679982,202.91,202.87,4.95923871]
[1756520181195,4.72679982,202.88,202.87,0.03]
[1756520181594,0.7,202.9,202.87,0.03]
[1756520181905,4.72679982,202.89,202.87,0.03]
[1756520182907,0.06,202.91,202.88,0.67]
[1756520183097,0.06,202.91,202.89,0.67]
[1756520183298,0.06,202.91,202.87,4.75679982]
[1756520183299,0.06,202.91,202.87,0.7]
[1756520183515,0.06,202.91,202.89,4.92877914]
[1756520183811,0.06,202.91,202.9,5.39679982]
[1756520184684,0.06,202.91,202.9,0.67]
[1756520184986,0.06,202.91,202.9,5.39679982]
[1756520185605,0.06,202.91,202.9,5.59853622]
[1756520186285,0.06,202.91,202.9,10.32533604]
[1756520187079,0.06,202.94,202.9,22.6466766]
[1756520187279,0.06,202.94,202.93,4.72679982]
[1756520187811,0.06,202.94,202.93,5.39679982]
[1756520188012,0.06,202.94,202.93,0.67]
[1756520188307,0.06,202.94,202.93,5.39679982]
[1756520188682,0.06,202.94,202.93,10.32460743]
[1756520197015,0.06,202.94,202.93,4.92780761]
[1756520197224,0.06,202.94,202.92,4.72679982]
[1756520197408,0.06,202.94,202.93,45.46679982]
[1756520197605,0.06,202.96,202.95,26.0]
[1756520197913,0.06,202.96,202.95,30.72679982]
[1756520198093,0.06,202.96,202.95,31.42679982]
[1756520199114,0.06,202.96,202.95,36.35412182]
[1756520202007,0.06,202.96,202.95,4.927322]
[1756520202227,0.06,202.96,202.95,45.627322]
[1756520202733,0.06,202.96,202.95,4.927322]
[1756520203024,0.06,202.96,202.95,45.627322]
[1756520203404,0.75,202.96,202.95,45.627322]
[1756520204508,0.06,202.96,202.95,45.627322]
[1756520205021,0.06,202.96,202.95,50.35412182]
[1756520205608,0.06,202.96,202.95,45.627322]
[1756520206309,0.06,202.96,202.95,51.05412182]
[1756520210912,0.06,202.97,202.95,51.05412182]
[1756520211231,0.06,202.99,202.98,4.72679982]
[1756520211425,0.06,202.99,202.98,45.36679982]
[1756520211732,0.06,202.99,202.98,46.06679982]
[1756520212328,0.06,202.99,202.98,50.99339357]
[1756520212610,0.06,202.99,202.98,46.26659375]
[1756520212811,0.06,202.99,202.98,50.99339357]
[1756520214033,0.06,202.99,202.98,46.26659375]
[1756520214224,0.06,202.99,202.98,4.92659375]
[1756520214540,0.75,202.99,202.98,40.62]
[1756520215535,0.75,202.99,202.98,45.54659375]
[1756520215729,0.06,202.99,202.98,45.54659375]
[1756520219328,0.75,202.99,202.96,4.92707922]
[1756520219503,0.75,202.99,202.97,40.6]
[1756520219504,0.69,202.98,202.97,40.6]
[1756520219705,4.78679982,202.99,202.94,4.95732796]
[1756520219936,4.72679982,202.97,202.94,0.03]
[1756520220131,0.69,202.98,202.94,0.03]
[1756520220132,0.69,202.98,202.95,40.58]
[1756520220324,5.41679982,202.97,202.95,40.58]
[1756520220522,0.69,202.96,202.95,40.58]
[1756520221534,5.41679982,202.96,202.95,40.58]
[1756520221738,5.41679982,202.96,202.94,0.03]
[1756520221921,4.72679982,202.96,202.95,40.58]
[1756520222629,13.59559401,202.95,202.94,40.61]
[1756520222808,18.98239383,202.95,202.94,0.03]
[1756520223227,20.95736183,202.95,202.94,0.03]
[1756520223441,16.23056201,202.95,202.94,0.03]
[1756520223620,49.90971583,202.95,202.94,0.03]
[1756520223817,44.98239383,202.95,202.94,0.03]
[1756520225427,5.38679982,202.95,202.94,0.03]
[1756520226738,4.72679982,202.95,202.94,0.03]
[1756520226933,5.38679982,202.95,202.94,0.03]
[1756520227926,0.06,202.99,202.94,0.68]
[1756520228128,0.72,202.99,202.94,0.68]
[1756520228431,4.72679982,202.98,202.94,0.68]
[1756520228633,5.44679982,202.99,202.94,46.16735265]
[1756520228831,4.78679982,202.99,202.94,45.51735265]
[1756520229026,0.72,202.99,202.94,46.16735265]
[1756520229227,5.44679982,202.99,202.94,46.16735265]
[1756520229740,5.44679982,202.99,202.95,0.65]
[1756520230043,5.44679982,202.99,202.94,45.51735265]
[1756520230224,4.78679982,202.99,202.95,5.57726908]
[1756520230426,0.06,202.99,202.95,5.57726908]
[1756520231020,0.66,202.98,202.94,40.59]
[1756520231231,5.38679982,202.98,202.94,40.59]
[1756520231837,5.38679982,202.98,202.94,46.16748738]
[1756520231838,4.72679982,202.98,202.94,46.16748738]
[1756520232137,4.78679982,202.99,202.94,50.8942872]
[1756520232443,5.44679982,202.99,202.94,50.8942872]
[1756520232637,4.78679982,202.99,202.94,50.2442872]
[1756520232838,0.06,202.99,202.95,0.65]
[1756520233553,0.06,202.99,202.96,0.65]
[1756520234349,0.06,202.99,202.96,5.57705201]
[1756520234925,0.06,202.99,202.97,0.65]
[1756520235130,0.06,202.99,202.97,5.37679982]
[1756520235348,0.06,202.99,202.98,0.65]
[1756520235532,0.06,202.99,202.98,41.17]
[1756520235734,0.06,202.99,202.98,45.89679982]
[1756520236148,0.06,202.99,202.98,50.82339357]
[1756520236149,1.932407,202.99,202.98,50.82339357]
[1756520236454,1.932407,202.99,202.98,46.09659375]
[1756520237740,1.932407,202.99,202.98,50.82339357]
[1756520242126,1.932407,202.99,202.95,26.0]
[1756520242352,1.932407,202.99,202.96,45.22679982]
[1756520242552,1.932407,202.99,202.98,4.72679982]
[1756520242936,0.06,203.02,202.99,26.0]
[1756520243164,0.06,203.02,203.01,4.72679982]
[1756520243384,0.06,203.02,203.01,8.63158543]
[1756520243538,0.06,203.02,203.01,9.28158543]
[1756520244162,0.06,203.02,203.01,14.20745115]
[1756520245250,0.06,203.04,203.03,26.0]
[1756520245441,0.06,203.04,203.03,71.20679982]
[1756520245641,0.06,203.04,203.03,71.85679982]
[1756520245958,1e-08,203.04,203.03,71.85679982]
[1756520247541,1e-08,203.04,203.03,36.3021803]
[1756520247869,1e-08,203.04,203.03,76.7621803]
[1756520249644,1e-08,203.04,203.03,76.0921803]
[1756520250138,1e-08,203.04,203.03,76.7421803]
[1756520251654,1e-08,203.04,203.03,72.01538048]
[1756520251856,1e-08,203.04,203.03,76.7421803]
[1756520252269,1e-08,203.04,203.03,36.3021803]
[1756520252481,1e-08,203.04,203.03,76.7421803]
[1756520253609,1e-08,203.04,203.03,30.92538048]
[1756520253774,1e-08,203.04,203.03,76.0721803]
[1756520254673,1e-08,203.04,203.03,36.3521803]
[1756520254977,1e-08,203.04,203.03,76.7721803]
[1756520263685,1e-08,203.04,203.03,76.7321803]
[1756520270185,1e-08,203.04,203.03,156.3321803]
[1756520271481,1e-08,203.04,203.03,151.60538048]
[1756520271681,1e-08,203.04,203.03,156.3321803]
[1756520272608,0.71,203.15,203.03,206.86812794]
[1756520272922,0.71,203.14,203.12,4.72679982]
[1756520273215,4.72679982,203.17,203.13,40.34]
[1756520273401,4.72679982,203.18,203.13,40.34]
[1756520273613,0.71,203.17,203.13,40.34]
[1756520273811,1.91665242,203.19,203.14,0.67]
[1756520274011,0.71,203.18,203.17,4.72679982]
[1756520274178,0.71,203.18,203.17,45.04679982]
[1756520274696,0.71,203.18,203.17,49.96878633]
[1756520275325,1.20665242,203.19,203.17,49.96878633]
[1756520275526,1.20665242,203.19,203.18,5.39679982]
[1756520276737,1.20665242,203.19,203.18,10.31854408]
[1756520279587,1.20665242,203.19,203.18,5.59174426]
[1756520279782,1.20665242,203.19,203.18,10.31854408]
[1756520280314,1e-08,203.19,203.18,10.31854408]
[1756520281419,1e-08,203.19,203.18,9.64854408]
[1756520281708,1e-08,203.19,203.18,10.35854408]
[1756520282513,1e-08,203.19,203.18,9.64854408]
[1756520282685,1e-08,203.19,203.18,35.64854408]
[1756520283483,1e-08,203.19,203.18,36.35854408]
[1756520283887,1e-08,203.19,203.18,35.64854408]
[1756520284084,1e-08,203.19,203.18,36.35854408]
[1756520284309,1e-08,203.19,203.18,40.37534408]
[1756520284920,0.72,203.31,203.21,44.32239383]
[1756520285119,0.72,203.31,203.3,4.72679982]
[1756520285302,0.72,203.31,203.3,45.00679982]
[1756520286102,0.72,203.31,203.3,45.19883915]
[1756520286313,13.59559401,203.38,203.3,49.92563897]
[1756520286499,0.22,203.33,203.31,4.72679982]
[1756520286700,13.59559401,203.38,203.32,40.26]
[1756520286928,4.72679982,203.36,203.32,40.26]
[1756520287110,13.59559401,203.38,203.32,40.26]
[1756520287111,4.72679982,203.35,203.32,40.26]
[1756520287298,4.72679982,203.34,203.32,40.26]
[1756520287513,4.72679982,203.35,203.31,40.26]
[1756520287927,18.51252883,203.38,203.31,40.26]
[1756520288147,4.72679982,203.34,203.31,45.17856575]
[1756520288322,13.59559401,203.38,203.31,45.17856575]
[1756520288648,0.14,203.37,203.31,40.26]
[1756520288842,4.72679982,203.34,203.31,40.26]
[1756520289042,0.14,203.33,203.31,45.17856666]
[1756520289216,0.14,203.32,203.31,40.26]
[1756520289847,0.14,203.32,203.31,45.17859721]
[1756520290150,0.14,203.33,203.31,45.17859721]
[1756520290450,0.14,203.32,203.31,45.17859721]
[1756520291936,4.92679982,203.34,203.31,45.17859721]
[1756520292141,0.14,203.33,203.31,45.17859721]
[1756520292662,0.2,203.34,203.31,45.17859721]
[1756520293127,0.14,203.33,203.31,45.17859721]
[1756520293510,0.06,203.34,203.31,45.17859721]
[1756520293711,0.14,203.33,203.31,45.17859721]
[1756520293944,0.14,203.32,203.3,40.24]
[1756520294122,0.14,203.31,203.3,40.24]
[1756520294318,4.92679982,203.34,203.3,40.24]
[1756520294756,0.2,203.34,203.3,44.96679982]
[1756520295962,0.14,203.33,203.31,4.91859721]
[1756520296134,0.06,203.34,203.32,40.24]
[1756520296335,4.78679982,203.34,203.32,40.24]
[1756520296849,4.92679982,203.34,203.32,40.24]
[1756520297053,0.14,203.33,203.32,40.24]
[1756520297252,0.14,203.33,202.88,14.31545188]
[1756520297253,4.86679982,203.33,203.23,0.71]
[1756520297462,4.72679982,203.27,203.24,40.22]
[1756520297769,4.72679982,203.27,203.24,40.93]
[1756520297976,4.72679982,203.28,203.24,40.93]
[1756520298153,4.72679982,203.28,203.24,40.22]
[1756520298556,4.72679982,203.25,203.21,14.783058]
[1756520298749,4.72679982,203.24,203.22,40.22]
[1756520299687,4.86679982,203.23,203.2,4.918651]
[1756520299863,4.72679982,203.22,203.2,40.22]
[1756520300684,4.72679982,203.21,203.18,40.25]
[1756520300976,4.72679982,203.19,203.18,40.25]
[1756520301190,4.72679982,203.19,203.18,0.03]
[1756520301470,4.86679982,203.19,203.18,0.03]
[1756520301846,18.46239383,203.19,203.18,0.03]
[1756520302255,23.38389587,203.19,203.18,0.03]
[1756520302798,49.38389587,203.19,203.18,0.03]
[1756520302969,23.38389587,203.19,203.18,0.03]
[1756520303173,39.59559401,203.16,203.08,10.78]
[1756520303369,44.32239383,203.16,203.08,10.78]
[1756520303563,44.46239383,203.16,203.08,10.78]
[1756520303961,49.38462261,203.16,203.08,10.78]
[1756520304882,49.38462261,203.16,203.08,15.70409705]
[1756520305092,49.38462261,203.16,203.08,10.78]
[1756520306868,49.38462261,203.16,203.08,11.49]
[1756520307580,49.38462261,203.16,203.06,0.71]
[1756520307888,49.38462261,203.16,203.04,0.71]
[1756520307889,13.59559401,203.11,203.04,0.71]
[1756520308063,4.72679982,203.06,203.04,0.71]
[1756520309669,4.72679982,203.05,203.04,0.71]
[1756520309864,0.14,203.1,203.04,0.71]
[1756520310082,4.72679982,203.07,203.04,0.71]
[1756520311810,4.72679982,203.06,203.04,0.71]
[1756520312181,4.72679982,203.05,203.03,0.03]
[1756520312683,4.72679982,203.05,203.04,0.67]
[1756520312875,0.14,203.09,203.04,0.67]
[1756520312876,26.0,203.08,203.04,0.67]
[1756520313075,4.72679982,203.05,203.04,0.67]
[1756520313591,26.0,203.08,203.04,0.67]
[1756520313779,4.72679982,203.05,203.04,0.67]
[1756520314601,4.72679982,203.06,203.04,0.67]
[1756520317595,4.92271803,203.14,203.04,4.92510158]
[1756520317793,4.72679982,203.07,203.05,0.67]
[1756520318007,4.72679982,203.07,203.03,0.7]
[1756520318322,4.72679982,203.05,203.03,0.03]
[1756520318524,13.59559401,203.08,203.03,0.7]
[1756520318823,4.72679982,203.06,203.04,0.67]
[1756520319119,4.72679982,203.06,203.03,0.03]
[1756520319328,4.72679982,203.06,203.04,0.67]
[1756520319706,4.72679982,203.07,203.04,0.67]
[1756520319912,4.72679982,203.1,203.05,5.39679982]
[1756520320091,39.73559401,203.13,203.06,4.72679982]
[1756520320293,4.72679982,203.11,203.07,0.67]
[1756520320522,4.72679982,203.11,203.08,0.67]
[1756520320715,30.72679982,203.11,203.08,0.67]
[1756520321113,26.0,203.11,203.08,0.67]
[1756520321290,4.72679982,203.11,203.06,5.39679982]
[1756520321495,4.72679982,203.11,203.07,0.67]
[1756520321695,4.72679982,203.11,203.08,0.67]
[1756520322118,4.72679982,203.11,203.08,5.59405485]
[1756520322329,157.6,203.15,203.09,0.67]
[1756520322544,4.72679982,203.13,203.09,0.67]
[1756520322696,4.72679982,203.13,203.08,9.65085467]
[1756520322897,4.72679982,203.13,203.09,0.67]
[1756520323318,4.72679982,203.13,203.09,5.59377968]
[1756520324028,157.74,203.15,203.09,5.59377968]
[1756520324249,4.72679982,203.13,203.09,5.59377968]
[1756520324531,157.74,203.15,203.09,5.59377968]
[1756520324831,4.72679982,203.13,203.09,5.59377968]
[1756520325341,13.59559401,203.17,203.11,4.72679982]
[1756520325535,4.72679982,203.16,203.11,5.39679982]
[1756520325841,4.72679982,203.16,203.12,0.67]
[1756520326043,4.72679982,203.16,203.13,0.67]
[1756520326217,18.32239383,203.17,203.12,0.67]
[1756520326417,18.46239383,203.17,203.12,5.59306293]
[1756520326645,4.72679982,203.18,203.13,5.39679982]
[1756520326940,4.72679982,203.17,203.14,0.67]
[1756520327144,13.59559401,203.2,203.14,0.67]
[1756520327320,0.14,203.19,203.13,4.72679982]
[1756520327520,26.0,203.17,203.08,5.59416781]
[1756520327721,26.14,203.17,203.1,4.72679982]
[1756520327922,4.72679982,203.15,203.1,5.39679982]
[1756520328110,4.72679982,203.15,203.11,0.67]
[1756520328307,4.72679982,203.15,203.12,0.67]
[1756520328535,4.72679982,203.16,203.13,0.67]
[1756520329426,0.06,203.15,203.13,0.67]
[1756520329828,0.06,203.15,203.13,5.59280918]
[1756520330215,0.06,203.15,203.13,4.92280918]
[1756520330729,0.06,203.15,203.13,5.59280918]
[1756520330925,0.06,203.15,203.13,4.92280918]
[1756520331243,0.06,203.15,203.14,0.67]
[1756520333129,0.06,203.15,203.14,5.59271339]
[1756520333616,0.06,203.15,203.14,4.92271339]
[1756520333938,4.92679982,203.15,203.07,40.14]
[1756520334142,4.72679982,203.11,203.08,0.67]
[1756520334343,4.72679982,203.11,203.09,0.67]
[1756520334647,4.72679982,203.12,203.1,0.67]
[1756520334847,4.72679982,203.13,203.1,0.67]
[1756520336521,4.72679982,203.13,203.1,5.59348958]
[1756520336719,13.79559401,203.15,203.1,5.59348958]
[1756520336922,4.72679982,203.13,203.1,5.59348958]
[1756520337525,39.79559401,203.15,203.1,5.59348958]
[1756520337733,4.72679982,203.13,203.1,5.59348958]
[1756520338815,4.72679982,203.13,203.11,0.67]
[1756520339023,4.72679982,203.13,203.09,4.92392535]
[1756520339228,4.72679982,203.13,203.09,5.59392535]
[1756520339631,40.20559401,203.15,203.04,0.03]
[1756520339632,4.72679982,203.1,203.04,0.03]
[1756520339846,4.72679982,203.07,203.04,0.03]
[1756520340139,4.72679982,203.07,203.05,0.67]
[1756520340441,4.72679982,203.09,203.05,0.67]
[1756520340747,4.72679982,203.08,203.05,5.59468283]
[1756520341342,4.72679982,203.08,203.06,0.72]
[1756520341925,0.55,203.07,203.04,0.03]
[1756520342246,4.72679982,203.05,203.04,0.03]
[1756520343059,18.87239383,203.05,203.04,0.03]
[1756520343628,20.84648383,203.05,203.04,0.03]
[1756520343831,39.59559401,203.05,203.04,0.03]
[1756520344136,44.32239383,203.05,203.04,0.03]
[1756520345765,0.55,203.08,203.04,0.03]
[1756520345961,4.72679982,203.05,203.04,0.03]
[1756520346253,0.55,203.07,203.04,0.03]
[1756520346456,4.72679982,203.05,203.04,0.03]
[1756520346757,4.72679982,203.07,203.04,0.75]
[1756520346955,4.72679982,203.09,203.05,0.72]
[1756520347122,0.55,203.12,203.06,0.72]
[1756520347328,4.72679982,203.1,203.06,0.72]
[1756520347557,13.59559401,203.12,203.07,0.72]
[1756520347764,13.59559401,203.13,203.08,0.72]
[1756520348071,0.06,203.15,203.1,4.72679982]
[1756520348271,0.06,203.15,203.11,0.72]
[1756520348566,0.06,203.15,203.14,4.72679982]
[1756520348752,0.06,203.15,203.14,0.72]
[1756520350774,0.06,203.15,203.14,5.64271339]
[1756520350974,0.06,203.15,203.13,4.92294882]
[1756520351173,0.06,203.15,203.13,0.72]
[1756520351339,0.06,203.15,203.14,0.72]
[1756520353270,0.06,203.15,203.12,0.72]
[1756520353565,0.06,203.15,203.13,0.72]
[1756520354341,0.06,203.15,203.13,5.64290618]
[1756520354537,0.06,203.15,203.14,0.72]
[1756520354762,0.06,203.15,203.14,5.44679982]
[1756520354945,0.06,203.15,203.14,0.72]
[1756520355143,0.06,203.15,203.14,5.44679982]
[1756520356141,0.06,203.15,203.14,0.72]
[1756520356344,0.06,203.15,203.14,5.64271339]
[1756520356968,0.06,203.15,203.14,0.72]
[1756520357160,0.06,203.15,203.12,45.02298541]
[1756520357359,0.06,203.15,203.13,0.72]
[1756520357564,0.06,203.15,203.11,40.08]
[1756520357767,4.78679982,203.15,203.12,0.72]
[1756520358874,0.06,203.15,203.12,5.64309917]
[1756520359059,0.06,203.15,203.12,0.72]
[1756520359263,4.72679982,203.14,203.1,0.72]
[1756520359465,4.72679982,203.13,203.09,45.00377093]
[1756520359647,4.72679982,203.11,203.08,0.72]
[1756520359846,0.61,203.15,203.05,44.80679982]
[1756520360161,4.72679982,203.13,203.08,4.72679982]